Cogmind - Beta 15 @@@ ROGUE MODE // 2025.10.03 @ 17:44:28 Player: opdo Result: Self-destructed Performance ------------- Evolutions (0) 0 Regions Visited (3) 600 Robots Destroyed (3) 15 Value Destroyed (108) 108 Prototype IDs (0) 0 Alien Tech Used (0) 0 Bonus (300) 300 TOTAL SCORE: 1023 Bonus ------- Registered with UFD 300 Cogmind --------- Core Integrity 216/250 Matter 236/300 Energy 265/265 System Corruption 0% Temperature Cool (0) Movement Walking (120) Location -9/Scraptown Parts ------- > --- POWER (1) -------- Improved Ion Engine > --- PROPULSION (2) --- Aluminum Leg Aluminum Leg > --- UTILITY (2) ------ Small Storage Unit Weapon Shielding > --- WEAPON (2) ------- Small Laser Salvaging Laser > --- INVENTORY (8) ---- Ion Engine Light Treads Light Treads Aluminum Leg Subdweller Monowheel Salvaging Laser Subdweller Machine Gun Subdweller Machine Gun Peak State ------------ > --- POWER ------------ Improved Ion Engine > --- PROPULSION ------- Aluminum Leg Aluminum Leg > --- UTILITY ---------- Small Storage Unit Weapon Shielding > --- WEAPON ----------- Small Laser Salvaging Laser > --- INVENTORY -------- Ion Engine Light Treads Light Treads Aluminum Leg Subdweller Monowheel Salvaging Laser Subdweller Machine Gun Subdweller Machine Gun [Rating: 9] Favorites ----------- Power Improved Ion Engine Engine Improved Ion Engine Propulsion Aluminum Leg Leg Aluminum Leg Utility Small Storage Unit Storage Small Storage Unit Protection Weapon Shielding Weapon Small Laser Energy Gun Small Laser Ballistic Gun Light Assault Rifle Build | -11 -10 -10 -9 ------- Run | Yrd Mat Sub Scr Slots Evolved . | . . . . Power . | . . . . Propulsion . | . . . . Utility . | . . . . Weapon . | . . . . Parts Attached 10 | 5 1 2 2 Power 2 | 1 . . 1 Engine 2 | 1 . . 1 Core . | . . . . Reactor . | . . . . Propulsion 3 | 2 . 1 . Treads . | . . . . Leg 3 | 2 . 1 . Wheel . | . . . . Hover . | . . . . Flight . | . . . . Utility 2 | 1 . . 1 Device . | . . . . Storage 1 | 1 . . . Processor . | . . . . Hackware . | . . . . Protection 1 | . . . 1 Artifact . | . . . . Weapon 3 | 1 1 1 . Energy Gun 2 | . 1 1 . Energy Cannon . | . . . . Ballistic Gun 1 | 1 . . . Ballistic Cannon . | . . . . Launcher . | . . . . Special Weapon . | . . . . Impact Weapon . | . . . . Slashing Weapon . | . . . . Piercing Weapon . | . . . . Special Melee Weapon . | . . . . Unidentified Prototypes . | . . . . Parts Lost . | . . . . Power . | . . . . Propulsion . | . . . . Utility . | . . . . Weapon . | . . . . Highest Loss Streak . | . . . . To Critical Strikes . | . . . . Average Backups 7 | 1 3 6 8 Power . | . 1 1 1 Propulsion 3 | . 2 3 4 Utility . | . . . . Weapon 2 | . . 2 3 Tool/Special . | . . . . Unused Backups 7 | . . . 7 Power 1 | . . . 1 Propulsion 3 | . . . 3 Utility . | . . . . Weapon 3 | . . . 3 Tool/Special . | . . . . Average Slot Usage (%) 94 | . 71 85 99 Engine 14 | . 14 14 14 Leg 28 | . 28 28 28 Storage 14 | . 14 14 14 Protection 9 | . . . 13 Energy Gun 24 | . . 26 28 Ballistic Gun 1 | . 14 1 . Peak Build Rating 9 | 5 6 7 9 Average Rating 8 | 4 5 6 8 On Entrance 4 | . 5 6 7 Naked Turns . | . . . . Heaviest Build 15 | 9 10 10 15 Greatest Support 20 | 20 20 20 20 Greatest Overweight (x) 2 | 2 . . . Average Overweight (x) . | . . . . Largest Inventory Capacity 8 | 8 8 8 8 Average Capacity 7 | 7 8 8 8 Most Carried 8 | 3 3 8 8 Average Carried 7 | 1 3 7 7 Final Capacity 8 | 8 8 8 8 Final Carried 8 | 3 3 8 8 Class Distribution -------------------- 100% | Mutant Dominant Class ---------------- Mutant | -10/Materials Mutant | -10/Subcaves Mutant | -9/Scraptown Resources | -11 -10 -10 -9 ----------- Run | Yrd Mat Sub Scr Matter Collected 258 | 89 87 52 30 Remotely . | . . . . Salvage Created 147 | . 87 60 . Parts 6 | . 3 3 . Haulers Intercepted . | . . . . Recyclers Shooed . | . . . . Parts Field Recycled . | . . . . Retrieved Matter . | . . . . Parts Self-Destructed 4 | . . 4 . Prevented . | . . . . Kills | -11 -10 -10 -9 ------- Run | Yrd Mat Sub Scr Combat Hostiles Destroyed 3 | . 2 1 . Guns 3 | . 2 1 . Classes Destroyed 2 | . 1 1 . Grunt 2 | . 2 . . Subdweller 1 | . . 1 . Best Kill Streak 2 | . 2 1 . Combat Bots Only 2 | . 2 1 . Max Kills in Single Turn 1 | . 1 1 . Gunslinging . | . . . . Exploded . | . . . . Melee . | . . . . Uniques/NPCs Destroyed . | . . . . Combat | -11 -10 -10 -9 -------- Run | Yrd Mat Sub Scr Hostile Shots Fired 8 | . 8 . . Missed 2 | . 2 . . Hits 6 | . 6 . . Projectile 6 | . 6 . . Damage Taken 65 | . 65 . . Core 34 | . 34 . . Absorbed by Shields . | . . . . Core Remaining (%) 100 | 100 . . . Volleys Fired 25 | . 22 3 . Largest 2 | . 1 2 . Hottest 60 | . 20 60 . Shots Fired 28 | . 22 6 . Gun 28 | . 22 6 . Cannon . | . . . . Launcher . | . . . . Special . | . . . . Kinetic 25 | . 22 3 . Thermal 3 | . . 3 . Explosive . | . . . . Electromagnetic . | . . . . Robot Hit Streak 6 | . 6 4 . Robot Miss Streak 2 | . 2 2 . Penetration Max . | . . . . Secondary Targets . | . . . . Shots Hit Robots 21 | . 17 4 . Core Hits 6 | . 5 1 . Critical Kills . | . . . . Critical Parts Destroyed . | . . . . Critical Strikes . | . . . . Melee Attacks . | . . . . Impact . | . . . . Slashing . | . . . . Piercing . | . . . . Sneak Attacks . | . . . . Combat Hostiles . | . . . . Follow-up Attacks . | . . . . Damage Inflicted 177 | . 140 37 . Guns 170 | . 133 37 . Cannons . | . . . . Explosions . | . . . . Melee . | . . . . Ramming 7 | . 7 . . Kinetic 148 | . 133 15 . Thermal 22 | . . 22 . Explosive . | . . . . Electromagnetic . | . . . . Impact . | . . . . Slashing . | . . . . Piercing . | . . . . Highest Corruption . | . . . . Average Corruption . | . . . . Corruption Purged . | . . . . Corruption Blocked . | . . . . Overload Shots . | . . . . Overflow Damage . | . . . . Projectiles . | . . . . Explosions . | . . . . Melee . | . . . . Knockbacks . | . . . . Impact . | . . . . Kinetic . | . . . . Secondary . | . . . . Self-Inflicted Damage . | . . . . Shots . | . . . . Rammed . | . . . . Targets Rammed 1 | . 1 . . Kicked 1 | . 1 . . Crushed . | . . . . Highest Temperature 6 | . 6 . . Average Temperature 6 | . 6 . . Received Heat Transfer 36 | . 36 . . Siege Activations . | . . . . Martial Activations . | . . . . Shielding Activations . | . . . . Robots Disrupted . | . . . . Combat Hostiles . | . . . . Robots Corrupted . | . . . . Combat Hostiles . | . . . . Parts Fried . | . . . . Impact Corruptions . | . . . . Robots Melted . | . . . . Combat Hostiles . | . . . . Parts Melted 2 | . . 2 . Heat Transferred 50 | . . 50 . Parts Sabotaged . | . . . . Parts Stolen . | . . . . Parts Stripped . | . . . . Power Chain Reactions . | . . . . Alert | -11 -10 -10 -9 ------- Run | Yrd Mat Sub Scr Maximum Alert Level . | . . . . Low Security (%) 100 | 100 100 . . Level 1 . | . . . . Level 2 . | . . . . Level 3 . | . . . . Level 4 . | . . . . Level 5 . | . . . . High Security . | . . . . Max Security . | . . . . Peak Influence 30 | . 30 . . Initial . | . . . . Average 3 | . 4 . . Influence Increases 40 | . 40 . . Destroy 0b10 Robot/C 40 | . 40 . . Influence Decreases 40 | . 20 20 . Entered New Map 10 | . . 10 . Time Decay 30 | . 20 10 . Squads Dispatched 2 | . 2 . . Investigation 1 | . 1 . . Extermination . | . . . . Reinforcement 1 | . 1 . . Assault . | . . . . Garrison . | . . . . Intercept . | . . . . Searches Triggered . | . . . . Construction Impeded . | . . . . Haulers Reinforced . | . . . . Active Scanning Responses . | . . . . Cargo Convoy Interrupts . | . . . . Stealth | -11 -10 -10 -9 --------- Run | Yrd Mat Sub Scr Distress Signals . | . . . . Communications Jammed . | . . . . Distress Signals . | . . . . Times Spotted 5 | . 4 1 . Peak Tracking Total 2 | . 2 1 . Tactical Retreats . | . . . . Traps | -11 -10 -10 -9 ------- Run | Yrd Mat Sub Scr Traps Triggered . | . . . . Indirectly . | . . . . Trap Hack Attempts . | . . . . Triggered . | . . . . Disarmed . | . . . . Reprogrammed . | . . . . Reused . | . . . . Traps Extracted . | . . . . Installed . | . . . . Triggered . | . . . . Machines | -11 -10 -10 -9 ---------- Run | Yrd Mat Sub Scr Machines Disabled . | . . . . Max in Single Turn . | . . . . Machines Repaired . | . . . . Machines Dismantled . | . . . . Machines Sabotaged . | . . . . Overloaded Fab Kills . | . . . . Hacking | -11 -10 -10 -9 --------- Run | Yrd Mat Sub Scr Machines Accessed 3 | . 2 . 1 Terminals 1 | . 1 . . Fabricators . | . . . . Repair Stations . | . . . . Recycling Units 1 | . 1 . . Scanalyzers . | . . . . Garrison Access . | . . . . Total Hacks 8 | . 3 . 5 Successful 6 | . 1 . 5 Failed 2 | . 2 . . Catastrophic 2 | . 2 . . Database Lockouts . | . . . . Manual 1 | . 1 . . Terminals 1 | . 1 . . Fabricators . | . . . . Repair Stations . | . . . . Recycling Units 2 | . 2 . . Scanalyzers . | . . . . Garrison Access . | . . . . Terminal Hacks 5 | . . . 5 Robot Analysis 5 | . . . 5 Fabricator Hacks . | . . . . Repair Station Hacks . | . . . . Recycling Unit Hacks 1 | . 1 . . Retrieve Components 1 | . 1 . . Scanalyzer . | . . . . Garrison Access Hacks . | . . . . Unauthorized Hacks . | . . . . Terminals . | . . . . Fabricators . | . . . . Repair Stations . | . . . . Recycling Units . | . . . . Scanalyzers . | . . . . Garrison Access . | . . . . Data Cores Recovered . | . . . . Used . | . . . . Hacking Detections 2 | . 2 . . Full Trace Events 1 | . 1 . . Feedback Events . | . . . . Feedback Blocked . | . . . . Robot Schematics Acquired . | . . . . Robots Built . | . . . . Authchips . | . . . . Time . | . . . . Total Robot Build Rating . | . . . . Part Schematics Acquired . | . . . . Parts Built . | . . . . Authchips . | . . . . Time . | . . . . Total Part Build Rating . | . . . . Parts Repaired . | . . . . Time . | . . . . Parts Recycled . | . . . . Recycled Matter . | . . . . Retrieved Matter . | . . . . Retrieved Components . | . . . . Parts Scanalyzed . | . . . . Part Schematics Acquired . | . . . . Parts Damaged . | . . . . Bothacking | -11 -10 -10 -9 ------------ Run | Yrd Mat Sub Scr Used RIF Installer . | . . . . Robots Hacked . | . . . . Non-combat . | . . . . Combat . | . . . . Robot Hacks Applied . | . . . . Relay Couplers Released . | . . . . Fabnet Peak Effective % . | . . . . Robots Rewired . | . . . . Allies Hacked . | . . . . Hacks Repelled . | . . . . Allies | -11 -10 -10 -9 -------- Run | Yrd Mat Sub Scr Total Allies . | . . . . Largest Group . | . . . . Highest-Rated Group . | . . . . Highest-Rated Ally . | . . . . Total Orders . | . . . . Ally Attacks . | . . . . Total Damage . | . . . . Kills . | . . . . Allies Corrupted . | . . . . Allies Melted . | . . . . Intel | -11 -10 -10 -9 ------- Run | Yrd Mat Sub Scr Active Infowar (turns) . | . . . . Robot Analysis Total 5 | . . . 5 Derelict Logs Recovered 2 | . . . 2 Drone Launches . | . . . . Drone Recoveries . | . . . . Exploration | -11 -10 -10 -9 ------------- Run | Yrd Mat Sub Scr Turns Passed 1745 | 56 182 257 1250 Spaces Moved 1396 | 41 117 202 1036 Core 9 | 9 . . . Treads . | . . . . Legs 1387 | 32 117 202 1036 Wheels . | . . . . Hover . | . . . . Flight . | . . . . Fastest Speed 50 | 50 120 120 120 Average Speed 119 | 111 120 120 120 Slowest Speed 150 | 150 120 120 120 Overloaded Moves . | . . . . Propulsion Burnouts . | . . . . Robots Hopped . | . . . . Potential Cave-ins . | . . . . Cave-ins Triggered . | . . . . Exploration Rate (%) 30 | 4 30 17 72 Regions Visited 3 Branch Regions 2 Pre-discovered Areas . | . . . . Known Exits Taken . | . . . . Unknown Exits Taken 3 | 1 1 1 . Scrap Searched 1 | . . . 1 Spaces Dug . | . . . . Terrain Destroyed . | . . . . Melee . | . . . . Projectile . | . . . . AOE . | . . . . Terrain Rammed . | . . . . Walls Destroyed . | . . . . Machines Disabled . | . . . . Actions | -11 -10 -10 -9 --------- Run | Yrd Mat Sub Scr Total 1441 | 48 140 210 1043 Wait 2 | . . . 2 Move 1393 | 40 116 201 1036 Hop . | . . . . Pick Up 8 | 3 . 4 1 Fast Attach 7 | 5 1 . 1 Attach . | . . . . Detach . | . . . . Swap 3 | . . 2 1 Drop 2 | . . . 2 Fire 25 | . 22 3 . Melee . | . . . . Ram . | . . . . Kick 1 | . 1 . . Crush . | . . . . Escape Stasis . | . . . . Rewire . | . . . . Trap . | . . . . Miscellaneous . | . . . . Route ------- -11/Scrapyard -10/Materials (discovered 2 exits: [*Mat] / [*Sub]) -10/Subcaves (discovered 2 exits: [*Mat] / *Scr) -9/Scraptown History --------- Turn | Location | Event 6 | -11/Scrapyard | Discovered new exit (range 16) 57 | -11/Scrapyard | Entered Materials 58 | -10/Materials | Met a group of wandering Federalists 110 | -10/Materials | Discovered new exit (range 16) 193 | -10/Materials | Discovered new exit (range 5) 239 | -10/Materials | Entered Subcaves 240 | -10/Subcaves | Continued accompanying wandering Federalists (4) 240 | -10/Subcaves | Approached by a straggling Scientist 241 | -10/Subcaves | Discovered new exit (range 11) 286 | -10/Subcaves | Shifting Twisted Machinery released Sub. Monowheel 288 | -10/Subcaves | Shifting Twisted Machinery released Sub. Machine Gun 316 | -10/Subcaves | Build established: Mutant 317 | -10/Subcaves | Shifting Twisted Machinery released Sub. Machine Gun 320 | -10/Subcaves | Shifting Twisted Machinery released Barrage Gun 411 | -10/Subcaves | A swath of the cavern ceiling suddenly collapsed 479 | -10/Subcaves | Wandering Federalist uncovered a shortcut to Scraptown 496 | -10/Subcaves | Entered Scraptown 639 | -9/Scraptown | Visited UFD Registry 639 | -9/Scraptown | Registered with UFD as "Metalparser" 932 | -9/Scraptown | Scanned Subdweller tech in exchange for log data 935 | -9/Scraptown | Learned Research interactive machine intel 963 | -9/Scraptown | Visited Awakened 984 | -9/Scraptown | Visited Symbiants 1013 | -9/Scraptown | Visited Spacefarers 1024 | -9/Scraptown | Visited IN-MT5's Study 1116 | -9/Scraptown | Visited Analyses Database 1184 | -9/Scraptown | Visited Observation Area 1217 | -9/Scraptown | Visited A0-MCA Data Center 1267 | -9/Scraptown | Visited Junk Repository 1467 | -9/Scraptown | Visited Assassins FH 1746 | -9/Scraptown | Self-destructed Last Messages --------------- yourself a fine selection of the many wondrous pieces in our collection!" B8-VGL(x): Have you seen a test firing of the Science Guys' Voltaic Drivehammer? Oh. My. God. 01467_ LOCAL NARROWCAST: Assassins FH. No refunds regardless of unexpected side effects. 7J-NMR(j): Project Skyward sounds a little crazy to me. Who wants to ride junk into space? Count me out. 01698_ FE-T53(c): "Come one, come all! See for yourself a fine selection of the many wondrous pieces in our collection!" HJ-J7H(j): Have you ever seen more than one follower of the Great Nut in the same place at the same time? I think there might only be one of them! [Achievement: I Was Wrong!] Map ----- +----------------------------------------------------+ | #### ################"" "#??######??????????? | | """""""""""""""""""""""" "## """ ?????????? | | """""""""""""""""""""""" """""??????????? | | "## """ ?????????? | | "#?? ????????? | | "#??? "??????? | | ##??? ? #?????? | | #???? ??" #?????? | | """""""" """"""""""" """""" ##??????"????#?????? | | ######## ########### ###### #??????????????????? | | ?????? ??????? ???# #??????????????????? | | ?????# ???"" ""?# #??????????????????? | | ????# ??!" "=?# #??????????????????? | | #???#"" ""##"" ""## #??????????????????? | | #???#" "#" "# #??????????????????? | | #???#"" ""?#"" ""## ############???????? | | #???#" "##]" "!## #???????? | | #????"" ""?#"" ""## ##???????? | | ##????? "?" """ "# #???????? | | ??????? " && "???# "]" #??# #???????? | | ???????"""""""???#"###"#??# #???????? | | ?????????####????##???##??# ############???????? | | ??????????????????????##### #####??????????????? | | ??????????????????????#"|"# """"#??????????????? | | ?????????????????#"" ##" # "" "#??????????????? | | ?????????? @ c"#??????????????? | | ?????????? " "#??????????????? | | ?????????? """"#??????????????? | | ???????????##"|"##!! ##"" ##E######??????????????? | | ?????????????????#""??#"""####???????????????????? | | ???????????????????????####??????????????????????? | | ?????????????????????????????????????????????????? | | ?????????????????????????????????????????????????? | | ?????????????????????????????????????????????????? | | ?????????????????????????????????????????????????? | | ?????????????????????????????????????????????????? | | ?????????????????????????????????????????????????? | | ?????????????????????????????????????????????????? | | ?????????????????????????????????????????????????? | | ?????????????????????????????????????????????????? | | ?????????????????????????????????????????????????? | | ?????????????????????????????????????????????????? | | ?????????????????????????????????????????????????? | | ?????????????????????????????????????????????????? | | ?????????????????????????????????????????????????? | | | | | | | | | | | +----------------------------------------------------+ Best States ------------- Heat Dissipation 25 Energy Generation 12 Energy Capacity 265 Matter Stores 256 Matter Capacity 300 Sight Range 16 Terrain Scan Density 10 Weapon Shielding 33 Evasion (%) 55 Item Schematics ----------------- None Robot Schematics ------------------ None Fabricated ------------ Nothing Repaired ---------- Nothing Alien Tech Used ----------------- None Achievements -------------- I Was Wrong! Challenges ------------ None Game ------ Seed CentriumShieldFacilitator Manual? 0 Play Time 00:09:08 Cumulative 101.5 hours Start 2025.10.01 @ 23:17:30 End 2025.10.03 @ 17:44:28 Sessions 3 Manual Loads 0 Difficulty Rogue Special Mode None Game No. 273 Rogue 271 Adventurer 2 Explorer 0 Win Type - Total 1 Types 1/0/0/0/0/0/0/0/0/0 Lore% 75 Gallery% 60 Achievement% 51 Wizard Run 0 Options --------- Layout 2 ASCII 0 Keyboard 0 Movement Numpad Keybinds 0 Fullscreen 2 Font 24/Smallcaps Map View 50x44 Zoom Use 0% Tactical HUD 1 Map Filters NONE Filters NONE Steam 1 RUN: 8755c019-93de-400d-801b-27a8cd048e78